bitfinex/quotes_ETHUSD_20251201
["timestamp","ask_amount","ask_price","bid_price","bid_amount"]
[1764547202591,0.1023,2992.9,2992.8,0.00100001]
[1764547202987,0.4571,2993.4,2992.8,0.49110001]
[1764547203404,0.1023,2992.9,2992.8,0.00100001]
[1764547203823,0.4536,2993.2,2992.8,0.00100001]
[1764547204325,0.1058,2992.9,2992.8,0.00100001]
[1764547204526,0.4536,2993.2,2992.8,0.00100001]
[1764547204729,0.1058,2992.9,2992.8,0.00100001]
[1764547205536,3.44704093,2992.9,2992.8,0.00100001]
[1764547205714,4.1258573,2992.9,2992.8,0.00100001]
[1764547205899,3.44704093,2992.9,2992.8,0.00100001]
[1764547206229,3.89714093,2992.9,2992.8,0.00100001]
[1764547209053,3.79969055,2993.5,2992.8,0.49110001]
[1764547209204,0.04109674,2993.4,2992.8,0.49110001]
[1764547209397,0.04109674,2993.4,2992.8,0.94530001]
[1764547209610,0.002,2993.5,2993.3,0.4901]
[1764547209928,3.34258055,2993.5,2993.3,0.4901]
[1764547210331,0.002,2993.5,2993.4,0.4901]
[1764547210535,0.002,2993.5,2993.4,0.9443]
[1764547211143,0.002,2993.8,2993.5,0.405504]
[1764547211358,0.002,2994.1,2993.9,0.405504]
[1764547211557,0.002,2994.1,2994.0,12.87833336]
[1764547211856,0.002,2994.1,2994.0,11.11056836]
[1764547212065,0.002,2994.1,2994.0,22.49652036]
[1764547212355,0.002,2994.1,2994.0,1.349804]
[1764547212540,0.002,2994.1,2994.0,0.9443]
[1764547212744,0.002,2994.1,2994.0,4.28431336]
[1764547212944,0.002,2994.1,2994.0,24.64380224]
[1764547213143,0.002,2995.3,2994.0,33.16929432]
[1764547213342,0.002,2995.3,2994.6,0.6768]
[1764547213548,0.002,2995.3,2994.9,0.405504]
[1764547213744,0.002,2995.3,2994.9,6.469348]
[1764547213952,0.002,2995.3,2994.9,6.09670653]
[1764547214547,0.002,2995.3,2994.9,21.16556253]
[1764547214951,0.002,2995.3,2994.9,20.95256253]
[1764547215267,0.002,2995.3,2994.9,2.30448053]
[1764547215465,0.002,2995.3,2994.9,0.9443]
[1764547216064,0.002,2995.3,2994.9,4.6119503]
[1764547217865,0.002,2995.3,2994.9,0.4901]
[1764547218048,0.002,2995.3,2994.9,0.9443]
[1764547218247,0.002,2995.3,2994.9,0.4901]
[1764547218560,0.002,2995.3,2994.6,0.1867]
[1764547218561,0.1177,2995.0,2994.6,0.1867]
[1764547218898,0.002,2995.3,2994.7,0.32864066]
[1764547218899,0.03684086,2995.3,2994.7,0.32864066]
[1764547219059,0.002,2995.6,2995.0,0.32864066]
[1764547219385,0.03884086,2995.6,2994.7,0.40676575]
[1764547219591,0.4571,2995.5,2994.6,3.73903504]
[1764547219761,3.33856374,2995.3,2994.6,0.3997]
[1764547219956,3.37530405,2995.4,2994.6,0.72834066]
[1764547220484,3.83240405,2995.4,2994.6,0.72834066]
[1764547220983,0.002,2995.6,2995.4,0.32864066]
[1764547221195,0.002,2995.6,2995.5,0.4901]
[1764547221656,0.002,2995.6,2995.5,0.32864066]
[1764547221856,0.1177,2995.6,2995.2,0.32864066]
[1764547222071,0.5714,2995.6,2995.1,0.212]
[1764547222579,0.49054086,2995.5,2994.8,0.03339121]
[1764547222774,0.1177,2995.6,2994.9,0.03339009]
[1764547222975,0.4821,2995.6,2994.9,0.03339009]
[1764547223178,0.03684086,2995.5,2994.7,0.54064066]
[1764547223498,0.03684086,2995.5,2994.4,4.06362195]
[1764547223658,0.03684086,2995.5,2994.5,0.03339455]
[1764547223659,0.4801,2995.4,2994.5,0.03339455]
[1764547223867,3.37523483,2995.5,2994.6,3.33934415]
[1764547224197,7.1937288,2995.5,2994.7,0.45235026]
[1764547224393,7.1937288,2995.5,2994.5,0.4882]
[1764547224394,0.4801,2995.4,2994.5,3.82761636]
[1764547224578,6.67678794,2995.5,2994.7,0.85023298]
[1764547224894,0.4801,2995.4,2994.4,4.0636964]
[1764547225072,0.4801,2995.4,2994.4,4.85285309]
[1764547225274,0.4801,2995.4,2994.5,0.03339455]
[1764547225473,0.51694086,2995.4,2994.6,0.03339344]
[1764547225799,3.33856374,2995.3,2994.5,3.33944199]
[1764547225967,6.67712748,2995.3,2994.5,3.33944199]
[1764547226162,0.4801,2995.2,2994.4,1.21234066]
[1764547226363,0.4801,2995.2,2994.1,0.32864066]
[1764547226564,0.4801,2995.2,2994.2,0.0333979]
[1764547227464,3.33856374,2995.3,2994.2,0.4882]
[1764547227684,0.002,2995.6,2994.4,0.32864066]
[1764547227896,0.002,2995.6,2994.7,0.32864066]
[1764547228081,0.002,2995.6,2994.8,0.03339121]
[1764547228396,0.002,2995.6,2994.8,0.52159121]
[1764547228598,0.002,2995.6,2995.1,0.32864066]
[1764547228795,0.002,2995.6,2995.5,0.4998]
[1764547229997,0.002,2995.6,2995.5,3.83814084]
[1764547230198,0.002,2995.6,2995.5,30.06920384]
[1764547230402,0.002,2995.6,2995.5,28.8581025]
[1764547230978,0.002,2996.4,2995.7,22.196762]
[1764547231294,0.002,2996.4,2996.3,1.01564066]
[1764547231593,0.002,2996.4,2996.3,1.22864066]
[1764547231771,0.002,2996.4,2996.3,0.9]
[1764547231971,0.002,2996.4,2996.0,4.07557659]
[1764547232187,0.002,2996.4,2996.3,0.32864066]
[1764547232568,0.002,2996.4,2996.3,0.9649]
[1764547232899,0.002,2996.4,2996.3,1.69904466]
[1764547233898,0.002,2996.4,2996.3,5.24949418]
[1764547234102,0.002,2996.4,2996.3,18.20540718]
[1764547234288,0.002,2996.4,2996.3,20.35970483]
[1764547235215,0.002,2996.4,2996.3,37.40379183]
[1764547235508,0.002,2996.4,2996.3,26.34379783]
[1764547236002,0.002,2996.4,2996.3,11.58287883]
[1764547236203,0.002,2996.4,2996.3,9.96416183]
[1764547236501,0.002,2996.4,2996.3,12.88288383]
[1764547236717,0.002,2996.4,2996.3,7.40379183]
[1764547236876,0.002,2996.4,2996.3,4.63099018]
[1764547237203,0.002,2996.4,2996.3,1.1779]
[1764547237907,0.002,2996.4,2996.3,4.51534952]
[1764547238104,0.002,2996.4,2996.3,0.7028]
[1764547238283,0.2495,2996.4,2996.0,0.1972]
[1764547238467,0.002,2996.4,2996.1,0.212]
[1764547238673,0.002,2996.4,2996.2,0.0333756]
[1764547238989,0.002,2996.4,2996.1,0.212]
[1764547239501,0.002,2996.4,2996.2,0.0333756]
[1764547239891,0.002,2996.4,2996.3,3.33744952]
[1764547240197,0.002,2996.4,2996.2,3.37089474]
[1764547240600,0.002,2996.4,2996.3,0.895304]
[1764547240910,0.002,2996.4,2996.3,0.9649]
[1764547241625,0.002,2996.4,2996.2,0.74465141]
[1764547241789,0.002,2996.4,2996.3,1.91104466]
[1764547241986,0.002,2996.4,2996.3,5.24849418]
[1764547242325,0.03884086,2997.9,2996.9,0.4898]
[1764547242643,0.002,2997.9,2997.8,0.32864066]
[1764547242787,0.002,2997.9,2997.8,32.89216847]
[1764547243120,0.002,2997.9,2997.8,29.10157313]
[1764547243413,0.002,2997.9,2997.8,6.28545913]
[1764547243590,0.002,2997.9,2997.8,32.00943966]
[1764547243781,0.002,2997.9,2997.8,35.34521923]
[1764547243986,0.002,2997.9,2997.8,35.87413369]
[1764547244201,0.002,2997.9,2997.8,35.34521923]
[1764547244417,0.002,2997.9,2997.8,26.36141916]
[1764547244730,0.002,2997.9,2997.8,16.19721847]
[1764547244901,0.002,2997.9,2997.8,16.52585913]
[1764547245486,0.002,2997.9,2997.8,39.51755613]
[1764547245693,0.002,2997.9,2997.8,40.24315024]
[1764547246195,0.002,2997.9,2997.8,34.59747024]
[1764547246718,0.002,2997.9,2997.8,21.45255524]
[1764547246922,0.002,2997.9,2997.8,21.17499724]
[1764547247089,0.002,2997.9,2997.8,17.31497424]
[1764547247291,0.002,2997.9,2997.8,4.66022601]
[1764547247497,0.002,2997.9,2997.8,13.56966834]
[1764547247708,0.002,2997.9,2997.8,13.97517234]
[1764547248134,0.002,2997.9,2997.8,12.22624034]
[1764547248641,0.002,2997.9,2997.8,21.78263634]
[1764547248794,0.002,2997.9,2997.8,20.24641334]
[1764547249015,0.002,2997.9,2997.8,22.14608294]
[1764547249215,0.002,2997.9,2997.8,21.81744228]
[1764547249514,0.002,2997.9,2997.8,38.33164994]
[1764547251216,0.002,2997.9,2997.8,8.33164994]
[1764547251416,0.002,2997.9,2997.8,38.33164994]
[1764547251643,0.002,2997.9,2997.8,8.33164994]
[1764547251951,0.002,2997.9,2997.8,16.89717394]
[1764547252154,0.002,2997.9,2997.8,17.11017394]
[1764547252730,0.002,2997.9,2997.8,38.33164994]
[1764547253227,0.002,2997.9,2997.8,34.92530894]
[1764547253427,0.002,2997.9,2997.8,34.59666828]
[1764547253651,0.002,2997.9,2997.8,38.33164994]
[1764547253987,0.002,2998.2,2997.8,38.33164994]
[1764547253988,0.002,2998.6,2998.5,0.405504]
[1764547254173,0.002,2998.9,2998.8,31.45973877]
[1764547254319,0.002,2998.9,2998.8,38.17692919]
[1764547254517,0.03684086,3001.5,2999.1,0.6102]
[1764547254744,0.1919,3001.2,3000.6,0.32864066]
[1764547254950,0.1919,3001.2,3000.7,0.213]
[1764547254951,0.4755,3000.9,3000.7,0.213]
[1764547255323,0.105,3000.8,3000.6,0.32864066]
[1764547255522,0.0011,3000.7,3000.4,0.71564066]
[1764547255938,0.4766,3000.7,3000.4,0.71564066]
[1764547256255,0.104,3000.5,3000.4,0.174]
[1764547256684,4.63527198,3000.5,3000.4,0.174]
[1764547256883,5.43574899,3000.5,3000.4,0.174]
[1764547257233,5.76462609,3000.5,3000.4,0.174]
[1764547257484,0.72559411,3000.4,2999.1,0.213]
[1764547257633,0.03684086,3000.3,2999.2,0.32864066]
[1764547257833,0.51234086,3000.3,2999.2,0.32864066]
[1764547258130,0.2955,2999.3,2998.5,0.72559411]
[1764547258356,0.0038,2999.2,2998.6,0.213]
[1764547258560,0.0038,2999.2,2998.6,3.23036]
[1764547258740,0.0038,2999.2,2998.8,0.32864066]
[1764547258944,0.0038,2999.2,2998.9,0.03334556]
[1764547259176,0.1919,2999.6,2999.2,0.32864066]
[1764547259385,0.1919,2999.6,2999.5,0.32864066]
[1764547260376,0.666,3000.0,2999.5,0.32864066]
[1764547260555,0.4755,2999.9,2999.1,0.213]
[1764547260729,0.1054,2999.2,2999.0,0.32864066]
[1764547261157,0.5819,2999.1,2998.6,0.32864066]
[1764547261362,0.0011,2999.0,2998.6,0.32864066]
[1764547261582,0.4766,2999.0,2998.6,0.32864066]
[1764547261833,0.2953,2998.7,2998.5,0.32864066]
[1764547262158,0.4755,2999.0,2997.9,0.32864066]
[1764547262159,0.1959,2998.6,2997.9,0.32864066]
[1764547262333,0.1959,2998.6,2997.5,3.33604113]
[1764547262334,0.1024,2998.3,2997.7,0.213]
[1764547262664,3.5268439,2998.6,2997.7,0.213]
[1764547262665,0.005,2998.0,2997.7,0.213]
[1764547262869,0.4755,2998.5,2997.7,3.54887782]
[1764547263078,0.4755,2998.5,2997.8,0.32864066]
[1764547263260,0.4755,2998.5,2998.1,0.32864066]
[1764547264035,0.1919,2998.6,2998.5,0.32864066]
[1764547264344,0.1919,2998.6,2997.9,0.03335668]
[1764547264544,0.1919,2998.6,2998.3,0.32864066]
[1764547264750,0.1919,2998.6,2998.4,0.03335112]
[1764547264947,0.4755,2998.5,2998.4,0.03335112]
[1764547265265,0.1919,2998.9,2998.5,0.32864066]
[1764547265591,0.6674,2998.9,2998.6,0.03334889]
[1764547265934,0.1919,2998.9,2998.6,0.03334889]
[1764547266571,0.1919,2998.9,2998.7,3.3347784]
[1764547266836,3.33381549,2999.6,2998.7,3.3347784]
[1764547266837,0.4755,2999.7,2998.8,0.03334667]
[1764547267146,0.4755,2999.7,2999.3,0.32864066]
[1764547267563,0.1064,2999.4,2999.3,0.32864066]
[1764547267761,0.1064,2999.4,2998.8,0.75894078]
[1764547267990,0.4718,2999.3,2998.8,0.72559411]
[1764547268159,0.4718,2999.3,2998.9,0.76081509]
[1764547268560,0.1101,2999.0,2998.7,0.213]
[1764547268883,0.299,2998.8,2997.8,0.32864066]
[1764547269086,0.299,2998.8,2998.1,0.32864066]
[1764547269268,0.4731,2998.7,2998.1,0.32864066]
[1764547269588,0.0028,2998.2,2997.6,6.67200426]
[1764547269793,0.0028,2998.2,2997.8,4.711735]
[1764547269959,0.4755,2998.1,2997.7,0.88020043]
[1764547270161,0.1919,2997.8,2997.7,0.213]
[1764547270366,0.2983,2997.8,2997.1,30.0]
[1764547270572,0.0011,2997.7,2997.1,30.0]
[1764547270791,0.0011,2997.7,2997.3,30.0]
[1764547271402,0.1919,2997.8,2997.2,30.0]
[1764547271562,0.1919,2997.8,2997.3,3.25166241]
[1764547271760,0.4755,2997.7,2996.3,0.4995]
[1764547272082,0.6674,2997.8,2996.8,0.32864066]
[1764547272261,0.4755,2997.7,2996.8,2.834574]
[1764547272464,0.4755,2997.7,2997.0,0.32864066]
[1764547272662,0.4755,2997.7,2997.1,2.832182]
[1764547272899,3.81140057,2997.7,2997.1,2.832182]
[1764547273084,0.1064,2997.2,2996.7,3.54989382]
[1764547273267,0.4718,2997.1,2996.7,3.87853448]
[1764547273474,0.4718,2997.1,2996.7,0.54164066]
[1764547273683,0.2998,2996.8,2996.0,0.1815]
[1764547273887,0.2998,2996.8,2995.9,11.835256]
[1764547274102,0.7688,2996.8,2996.1,0.32864066]
[1764547274288,0.7688,2996.8,2996.4,0.32864066]
[1764547274467,0.7688,2996.8,2996.5,0.03337226]
[1764547274666,0.2998,2996.8,2996.5,3.37057202]
[1764547274901,0.1897,2996.8,2996.5,3.37057202]
[1764547275104,0.1897,2996.8,2996.5,7.4114554]
[1764547275279,0.469,2997.2,2996.7,0.32864066]
[1764547275474,0.469,2997.2,2996.8,0.03336892]
[1764547276267,0.40033006,2997.7,2996.8,0.03336892]
[1764547276474,0.4755,2997.6,2997.0,0.32864066]
[1764547277002,0.105,2997.1,2996.7,3.33693424]
[1764547277199,0.105,2997.1,2996.8,0.03336892]
[1764547277390,0.4755,2997.6,2996.8,0.03336892]
[1764547277594,0.4755,2997.6,2996.9,0.32864066]
[1764547277770,3.81150281,2997.6,2996.9,0.32864066]
[1764547277966,0.4755,2997.6,2996.9,0.32864066]
[1764547278371,0.4755,2997.5,2996.9,0.32864066]
[1764547278708,0.4755,2997.5,2997.0,3.33667]
[1764547278907,0.105,2997.0,2996.7,3.54997091]
[1764547279207,0.4755,2997.5,2996.8,0.38786116]
[1764547279208,3.81168553,2997.5,2996.8,0.38786116]
[1764547279501,0.4755,2997.5,2996.7,6.88697516]
[1764547279697,3.33602846,2997.6,2996.7,6.67397516]
[1764547279698,0.4755,2997.4,2996.7,6.67397516]
[1764547279901,0.4755,2997.4,2996.8,10.47123292]
[1764547280212,0.6674,2997.8,2996.8,0.4995]
[1764547280403,0.6674,2997.8,2997.0,0.32864066]
[1764547280578,0.6674,2997.8,2997.1,0.03336558]
[1764547280769,0.6674,2997.8,2997.2,6.6728947]
[1764547280974,0.1919,2997.8,2997.3,0.03336336]
[1764547281508,0.1919,2997.8,2997.3,0.4995]
[1764547281726,0.1919,2997.8,2997.4,0.32864066]
[1764547282078,0.1919,2997.8,2997.5,0.03336113]
[1764547282285,0.4755,2998.2,2997.5,0.03336113]
[1764547282482,3.54790326,2998.6,2997.5,0.03336113]
[1764547282483,0.76243497,2998.5,2997.5,0.03336113]
[1764547282676,1.26153497,2998.5,2997.6,0.32864066]
[1764547282873,0.4991,2998.4,2997.7,6.67178168]
[1764547283310,0.691,2998.7,2997.9,5.9352]
[1764547283501,0.691,2998.7,2998.1,0.32864066]
[1764547283673,1.09356234,2998.7,2998.1,0.32864066]
[1764547284082,0.1919,2998.7,2998.4,0.32864066]
[1764547284595,0.4592,2998.5,2997.9,4.467]
[1764547284796,0.4592,2998.5,2998.0,6.67111406]
[1764547285316,0.4592,2998.5,2998.0,3.33555703]
[1764547285502,0.4592,2998.5,2997.4,3.74163954]
[1764547285503,0.0012,2998.1,2997.5,3.33609098]
[1764547285720,0.4547,2998.0,2997.6,0.32864066]
[1764547286078,0.3177,2997.9,2997.5,4.04651168]
[1764547287407,0.3177,2997.9,2997.6,0.03336002]
[1764547287591,0.3177,2997.9,2997.5,7.3826251]
[1764547287794,0.1952,2997.9,2997.5,7.3826251]
[1764547288202,0.1952,2997.9,2997.5,4.04651168]
[1764547288499,0.1952,2997.9,2997.5,4.04751168]
[1764547288903,0.1952,2997.9,2997.5,0.001]
[1764547288904,0.1079,2997.6,2997.5,0.001]
[1764547289206,0.6647,2997.9,2997.5,3.37047271]
[1764547289513,0.1952,2997.9,2997.5,3.37044939]
[1764547289674,0.6647,2997.9,2997.5,0.03436113]
[1764547290010,0.6647,2997.9,2997.5,3.33709576]
[1764547290207,0.6647,2997.9,2997.5,3.37045689]
[1764547290382,0.1952,2997.9,2997.5,6.70657031]
[1764547290581,0.4695,2998.2,2997.5,6.70657031]
[1764547290582,3.80485346,2998.2,2997.5,4.06191686]
[1764547290883,3.33471791,2998.8,2997.5,0.03436113]
[1764547290884,3.84184945,2998.1,2997.5,0.03436113]
[1764547291084,0.50634086,2998.1,2997.5,0.03436113]
[1764547292474,0.03684086,2998.1,2997.5,0.75995524]
[1764547292697,0.4695,2998.4,2998.0,0.32864066]
[1764547292909,0.4672,2998.1,2997.8,0.213]
[1764547293280,0.1885,2997.9,2997.8,0.213]
[1764547293481,0.1885,2997.9,2997.6,0.03336002]
[1764547293837,0.4672,2997.7,2997.5,0.001]
[1764547293983,0.4707,2997.6,2997.5,0.001]
[1764547294913,4.86117334,2997.6,2997.5,0.001]
[1764547295094,5.68087949,2997.6,2997.5,0.001]
[1764547297928,0.4433771,2997.3,2996.9,0.001]
[1764547298227,0.3335771,2997.0,2996.9,0.001]
[1764547298527,0.0047,2997.0,2996.9,0.001]
[1764547298825,0.3288771,2996.7,2995.5,0.001]
[1764547299017,6.67489904,2996.3,2995.5,0.001]
[1764547299321,0.70037761,2996.2,2995.5,0.001]
[1764547299621,1.16987761,2996.2,2995.5,0.001]
[1764547299811,0.70037761,2996.2,2995.5,0.001]
[1764547300119,0.4695,2996.1,2995.5,0.0343834]
[1764547300319,0.3076,2995.6,2995.5,0.001]
[1764547301124,0.1873,2995.9,2995.5,0.001]
[1764547301722,0.213,2996.1,2995.5,0.001]
[1764547301923,6.8883527,2996.1,2995.5,0.001]
[1764547302131,0.92012527,2996.1,2995.5,0.001]
[1764547302326,3.55069096,2996.1,2995.5,0.001]
[1764547302830,0.4672,2995.6,2995.5,0.001]
[1764547303227,0.4997,2995.6,2995.5,0.001]
[1764547303406,0.4672,2995.6,2995.5,0.001]
[1764547303733,3.37039619,2995.9,2995.5,0.001]
[1764547304023,0.4672,2995.6,2995.5,0.001]
[1764547304526,4.03001559,2995.9,2995.5,0.001]
[1764547304709,0.0303,2995.6,2995.5,0.001]
[1764547305029,0.6921194,2995.9,2995.5,0.001]
[1764547305214,0.213,2996.0,2995.5,0.001]
[1764547305424,0.0303,2995.6,2995.5,0.001]
[1764547305628,0.2433,2995.6,2995.5,0.001]
[1764547306008,0.0303,2995.6,2995.5,0.001]
[1764547306332,0.4651,2995.9,2995.5,0.001]
[1764547306539,0.213,2995.9,2995.5,0.001]
[1764547306734,0.0303,2995.6,2995.5,0.001]
[1764547306943,0.4695,2995.9,2995.5,0.001]
[1764547307146,0.213,2996.0,2995.5,0.001]
[1764547307348,3.55087407,2996.0,2995.5,0.001]
[1764547307637,0.4695,2995.9,2995.5,0.001]
[1764547307935,0.1829,2996.2,2995.5,0.001]
[1764547307936,0.6524,2996.2,2995.5,0.001]
[1764547308136,0.24984086,2996.1,2995.5,0.001]
[1764547308808,1.00758561,2996.1,2995.5,0.001]
[1764547309342,1.47708561,2996.1,2995.5,0.001]
[1764547309714,3.33778371,2996.0,2995.5,0.001]
[1764547309920,0.03684086,2995.9,2995.5,0.001]
[1764547310949,0.03684086,2996.0,2995.5,0.001]
[1764547311150,0.4672,2995.6,2995.5,0.001]
[1764547311317,0.06934086,2996.0,2995.5,0.001]
[1764547311520,0.03684086,2996.0,2995.5,0.001]
[1764547311710,3.3746408,2996.0,2995.5,0.001]
[1764547311912,0.4672,2995.6,2995.5,0.001]
[1764547314512,3.84227026,2995.6,2995.5,0.001]
[1764547315658,3.87477026,2995.6,2995.5,0.001]
[1764547315823,0.50404086,2995.6,2995.5,0.001]
[1764547316147,3.8379294,2995.6,2995.5,0.001]
[1764547316352,3.84227026,2995.6,2995.5,0.001]
[1764547316666,0.50404086,2995.6,2995.5,0.001]
[1764547317046,0.03684086,2995.8,2995.5,0.4721]
[1764547317245,0.24984086,2995.8,2995.5,0.4721]
[1764547318262,0.0335,2995.6,2995.5,0.001]
[1764547318418,0.07034086,2995.6,2995.5,0.001]
[1764547318821,3.87037026,2995.6,2995.5,0.001]
[1764547319359,4.61251913,2995.6,2995.5,0.001]
[1764547319643,5.33811324,2995.6,2995.5,0.001]
[1764547320863,0.76243497,2995.6,2995.5,0.001]
[1764547321027,3.33805057,2995.8,2995.5,0.001]
[1764547321028,0.03684086,2995.7,2995.5,0.001]
[1764547321227,0.03684086,2995.7,2995.5,0.4721]
[1764547321536,0.0378,2995.6,2995.5,0.001]
[1764547321728,0.71286579,2995.6,2995.5,0.001]
[1764547321926,1.17046579,2995.6,2995.5,0.001]
[1764547322921,4.50869519,2995.6,2995.5,0.001]
[1764547323422,4.54553605,2995.6,2995.5,0.001]
[1764547324213,4.08793605,2995.6,2995.5,0.001]
[1764547324416,5.67663416,2995.6,2995.5,0.001]
[1764547324620,6.00551126,2995.6,2995.5,0.001]
[1764547324819,5.67663416,2995.6,2995.5,0.001]
[1764547325055,5.48413016,2995.6,2995.5,0.001]
[1764547325424,4.81353016,2995.6,2995.5,0.001]
[1764547325658,4.35146437,2995.6,2995.5,0.001]
[1764547325845,4.80906437,2995.6,2995.5,0.001]
[1764547326022,4.59606437,2995.6,2995.5,0.001]
[1764547326220,0.03684086,2995.7,2995.5,0.4721]
[1764547326533,0.0335,2995.6,2995.5,0.001]
[1764547326915,3.3717294,2995.6,2995.5,0.001]
[1764547327142,0.03684086,2995.7,2995.5,0.001]
[1764547327340,0.03884086,2995.8,2995.6,0.4711]
[1764547327541,0.03884086,2995.8,2995.7,0.4711]
[1764547327542,0.002,2995.8,2995.7,0.4711]
[1764547327750,0.002,2995.8,2995.7,0.9673]
[1764547327956,0.002,2996.1,2995.9,0.72559411]
[1764547328155,0.002,2996.1,2996.0,3.27335038]
[1764547328323,0.002,2996.1,2996.0,7.70023177]
[1764547328650,0.002,2997.3,2996.1,0.405504]
[1764547328851,0.002,2997.3,2996.3,32.11303877]
[1764547329054,0.002,2997.3,2996.3,21.60590929]
[1764547329352,0.002,2997.3,2997.2,0.32864066]
[1764547329650,0.002,2997.3,2997.2,19.70987777]
[1764547329831,0.002,2997.6,2997.5,1.13109811]
[1764547330028,0.002,2997.6,2997.5,6.30147811]
[1764547330256,0.002,2997.6,2997.5,4.95131877]
[1764547330430,0.002,2997.9,2997.8,15.940185]
[1764547330637,0.002,2997.9,2997.8,12.84295866]
[1764547330844,0.002,2997.9,2997.8,13.33915866]
[1764547331154,0.002,2997.9,2997.8,2.84285653]
[1764547331326,0.002,2997.9,2997.8,1.50894066]
[1764547331525,0.002,2997.9,2997.8,1.1803]
[1764547331726,0.002,2997.9,2997.4,3.33612573]
[1764547331727,0.002,2997.9,2997.4,0.82484066]
[1764547331939,0.002,2997.9,2997.5,0.7092]
[1764547332452,0.002,2997.9,2997.6,0.4962]
[1764547332654,0.002,2997.9,2997.8,0.4711]
[1764547332955,0.002,2997.9,2997.8,0.79974066]
[1764547333258,0.002,2997.9,2997.8,4.30307957]
[1764547333620,0.002,2997.9,2997.8,4.63172023]
[1764547333820,0.002,2997.9,2997.8,4.30307957]
[1764547334026,0.002,2997.9,2997.8,5.86589504]
[1764547334228,0.002,2997.9,2997.8,34.79688204]
[1764547334455,0.002,2997.9,2997.8,31.0634877]
[1764547334876,0.002,2997.9,2997.8,17.3896757]
[1764547335030,0.002,2997.9,2997.8,17.06103504]
[1764547335230,0.002,2997.9,2997.8,21.29187504]
[1764547335437,0.002,2997.9,2997.8,21.6205157]
[1764547335642,0.002,2997.9,2997.8,9.71383747]
[1764547335837,0.002,2997.9,2997.8,13.04961704]
[1764547336071,0.002,2997.9,2997.8,13.3782577]
[1764547336236,0.002,2997.9,2997.8,21.98138604]
[1764547336571,0.002,2997.9,2997.8,19.35941804]
[1764547336875,0.002,2997.9,2997.8,19.6880587]
[1764547337249,0.002,2997.9,2997.8,6.27139904]
[1764547337454,0.002,2997.9,2997.8,23.37568604]
[1764547337771,0.002,2997.9,2997.8,1.30832136]
[1764547338075,0.002,2997.9,2997.8,1.29494066]
[1764547339361,0.002,2997.9,2997.8,4.63072023]
[1764547339562,0.002,2997.9,2997.8,1.29494066]
[1764547339766,0.002,2997.9,2997.8,0.4981]
[1764547339973,0.002,2997.9,2997.7,0.213]
[1764547340537,0.7439,2997.8,2996.7,1.00177146]
[1764547340742,0.002,2997.9,2997.8,0.4981]
[1764547340952,0.002,2997.9,2997.8,0.32864066]
[1764547341572,0.002,2997.9,2997.4,0.54164066]
[1764547341872,0.002,2997.9,2997.8,0.4981]
[1764547342478,0.002,2997.9,2997.8,0.53145779]
[1764547342776,0.002,2997.9,2997.8,0.03335779]
[1764547342983,0.6606,2997.9,2997.4,0.213]
[1764547343182,0.6606,2997.9,2997.4,0.56793566]
[1764547343688,0.469,2997.5,2996.6,0.4508]
[1764547343887,0.469,2997.5,2997.0,0.32864066]
[1764547345370,0.089,2997.4,2997.0,0.32864066]
[1764547345565,0.089,2997.4,2996.7,4.27554798]
[1764547345566,3.33633603,2997.3,2996.7,4.27554798]
[1764547345768,0.4709,2997.7,2996.8,0.4275548]
[1764547346482,0.002,2997.9,2997.4,0.32864066]
[1764547346718,0.002,2997.9,2997.5,0.03336113]
[1764547346999,3.33771231,2997.9,2997.5,0.03336113]
[1764547347557,0.002,2997.9,2997.5,3.82021744]
[1764547347889,0.002,2997.9,2997.6,0.74850334]
[1764547348088,0.002,2997.9,2997.4,3.33619318]
[1764547348089,0.002,2997.9,2997.8,0.4558]
[1764547348383,0.002,2997.9,2997.8,0.6688]
[1764547348583,0.002,2997.9,2997.8,1.1196]
[1764547349156,0.002,2997.9,2997.8,15.135528]
[1764547349356,0.002,2997.9,2997.8,14.377269]
[1764547349551,0.002,2997.9,2997.8,19.15077547]
[1764547349860,0.002,2997.9,2997.8,14.56539047]
[1764547350195,0.002,2997.9,2997.8,27.70009413]
[1764547350363,0.002,2997.9,2997.8,14.13770513]
[1764547350568,0.002,2997.9,2997.8,13.08555913]
[1764547350969,0.002,2997.9,2997.8,18.33514347]
[1764547351170,0.002,2997.9,2997.8,17.70416213]
[1764547351367,0.002,2997.9,2997.8,1.8935269]
[1764547351596,0.002,2997.9,2997.8,0.213]
[1764547351796,0.002,2997.9,2997.8,0.24635779]
[1764547352097,0.002,2997.9,2997.8,4.52837957]
[1764547352262,0.002,2997.9,2997.8,1.52124066]
[1764547352581,0.002,2997.9,2997.8,0.54164066]
[1764547352787,0.0881,2997.9,2997.8,0.213]
[1764547352973,0.0881,2997.9,2997.0,0.1863]
[1764547352974,0.742,2997.9,2997.0,0.1863]
[1764547353174,0.742,2997.9,2997.1,0.24636558]
[1764547353392,0.742,2997.9,2997.1,0.213]
[1764547353593,3.33589084,2997.7,2997.1,0.213]
[1764547353795,3.33589084,2997.7,2997.2,0.32864066]
[1764547354258,3.80779084,2997.7,2997.2,0.32864066]
[1764547354662,3.80779084,2997.7,2997.3,0.03336336]
[1764547355261,0.0833,2997.4,2997.3,0.03336336]
[1764547355458,3.33589084,2997.7,2997.3,0.03336336]
[1764547355687,6.67155914,2997.8,2997.3,0.03336336]
[1764547355894,1.15811591,2997.7,2997.2,0.03336447]
[1764547356299,0.68621591,2997.7,2997.2,0.03336447]
[1764547356470,3.33577957,2997.8,2997.2,0.03336447]
[1764547357298,3.9982549,2997.9,2997.2,3.36980227]